bitfinex/quotes_SOLUSD_20250108
["timestamp","ask_amount","ask_price","bid_price","bid_amount"]
[1736311008589,21.02434024,198.11,197.98,24.55048776]
[1736311008795,0.12549,198.04,197.94,24.55048776]
[1736311008967,20.12549,198.02,197.92,24.55048776]
[1736311009396,0.12549,198.0,197.9,24.55048776]
[1736311009772,0.12549,198.0,197.91,23.776884]
[1736311010091,0.12549,198.0,197.9,24.55048776]
[1736311010092,0.12549,197.98,197.9,23.776884]
[1736311010275,0.12549,197.98,197.9,48.32737176]
[1736311010588,0.12549,197.98,197.9,49.08508413]
[1736311011002,0.12549,197.98,197.9,25.30820013]
[1736311011361,0.12549,197.98,197.89,24.55048776]
[1736311011556,0.12549,197.98,197.9,48.32737176]
[1736311011798,0.12549,197.98,197.93,23.776884]
[1736311012092,1.621,198.05,197.94,49.08499808]
[1736311012093,2.58,198.01,197.94,49.08499808]
[1736311012490,1.621,198.05,197.97,23.776884]
[1736311012696,0.12549,198.01,197.97,23.776884]
[1736311013588,1.621,198.05,197.97,49.08485301]
[1736311013787,0.12549,198.06,197.98,24.55048776]
[1736311013976,20.0,198.07,197.98,24.55048776]
[1736311013977,0.12549,198.03,197.98,24.55048776]
[1736311014410,0.12549,198.03,198.0,23.776884]
[1736311014894,0.12549,198.03,197.97,24.55048776]
[1736311015212,0.12549,198.03,197.95,24.55048776]
[1736311015379,0.12549,198.03,197.94,24.55048776]
[1736311015576,0.12549,198.03,197.95,24.55048776]
[1736311015914,0.12549,198.03,197.92,0.75734065]
[1736311015915,0.12549,198.03,197.96,49.08490449]
[1736311016210,0.12549,198.03,197.96,23.776884]
[1736311017599,2.58,198.04,198.0,23.776884]
[1736311017783,0.12549,198.03,198.0,23.776884]
[1736311017980,0.12549,198.03,197.99,23.776884]
[1736311018195,0.12549,198.03,197.95,24.55048776]
[1736311018510,0.12549,198.03,197.96,23.776884]
[1736311019005,0.12549,198.03,197.96,48.32737176]
[1736311019382,1.02434024,198.03,197.92,24.55048776]
[1736311019684,0.12549,198.01,197.93,24.55048776]
[1736311020100,2.58,198.04,197.96,24.55048776]
[1736311020287,2.58,198.03,197.97,48.32737176]
[1736311020606,2.58,198.03,197.97,23.776884]
[1736311020788,0.12549,198.02,197.98,49.08481367]
[1736311020981,0.12549,198.02,198.0,48.32737176]
[1736311021306,0.12549,198.02,198.01,48.32737176]
[1736311021879,7.7383,198.1,198.02,23.776884]
[1736311022081,2.58,198.09,198.03,24.55048776]
[1736311022305,2.58,198.09,198.04,23.776884]
[1736311022506,0.12549,198.08,198.04,24.53403699]
[1736311022702,0.12549,198.08,198.06,24.55048776]
[1736311023006,2.58,198.1,198.07,23.776884]
[1736311023493,2.58,198.13,198.09,23.776884]
[1736311023805,0.12549,198.12,198.07,160.95048776]
[1736311024105,0.12549,198.12,198.04,24.55048776]
[1736311024288,0.12549,198.14,198.05,48.32737176]
[1736311024608,2.58,198.13,198.07,23.776884]
[1736311024791,0.12549,198.12,198.07,23.776884]
[1736311025310,0.12549,198.12,198.07,49.08441504]
[1736311026905,0.12549,198.14,198.09,24.55048776]
[1736311027222,0.12549,198.14,198.1,23.776884]
[1736311027429,0.12549,198.14,198.08,0.7568955]
[1736311027430,2.58,198.16,198.09,23.776884]
[1736311028080,0.12549,198.15,198.09,48.32737176]
[1736311029089,0.12549,198.15,198.07,136.4]
[1736311029419,0.12549,198.13,198.03,24.55048776]
[1736311029610,0.12549,198.13,198.03,25.3076464]
[1736311030015,0.12549,198.13,198.04,23.776884]
[1736311030325,0.12549,198.13,198.01,160.95048776]
[1736311030626,0.12549,198.12,198.02,23.776884]
[1736311030823,0.12549,198.12,198.02,48.32737176]
[1736311031522,0.12549,198.12,198.02,23.776884]
[1736311031686,0.12549,198.1,198.02,23.776884]
[1736311031887,0.12549,198.08,198.02,23.776884]
[1736311032096,0.12549,198.05,197.95,24.55048776]
[1736311032299,1.02434024,198.05,197.93,24.55048776]
[1736311032502,0.12549,198.05,197.95,24.55048776]
[1736311032736,0.12549,198.05,197.96,23.776884]
[1736311033123,0.12549,198.05,197.95,25.30798509]
[1736311033435,0.12549,198.03,197.93,24.55048776]
[1736311033730,0.12549,198.01,197.96,23.776884]
[1736311033937,0.12549,198.01,197.94,24.55048776]
[1736311034124,0.12549,198.01,197.93,24.55048776]
[1736311034494,0.12549,198.01,197.95,23.776884]
[1736311036403,2.58,198.01,197.96,0.75753848]
[1736311036803,0.12549,198.0,197.95,160.176884]
[1736311037115,0.12549,198.0,197.89,160.95048776]
[1736311037116,1.02434024,198.0,197.89,160.95048776]
[1736311037314,1.02434024,198.0,197.89,24.55048776]
[1736311037509,0.12549,197.97,197.9,23.776884]
[1736311037717,0.12549,197.95,197.87,160.95048776]
[1736311037915,0.12549,197.93,197.87,24.55048776]
[1736311038314,0.12549,197.93,197.88,23.776884]
[1736311038521,2.58,197.98,197.92,23.776884]
[1736311038906,0.12549,197.97,197.92,23.776884]
[1736311039133,0.12549,197.97,197.91,23.776884]
[1736311039314,0.12549,197.97,197.91,48.32737176]
[1736311039643,0.12549,197.97,197.93,23.776884]
[1736311040104,21.5901,198.01,197.93,184.72737176]
[1736311040307,2.58,198.0,197.93,184.72737176]
[1736311040508,0.12549,197.99,197.93,184.72737176]
[1736311042019,0.12549,197.99,197.93,160.176884]
[1736311044738,0.12549,197.97,197.87,136.4]
[1736311044917,0.12549,197.97,197.86,24.55048776]
[1736311045323,2.58,197.96,197.89,23.776884]
[1736311045530,0.12549,197.95,197.89,23.776884]
[1736311046349,0.12549,197.95,197.9,23.776884]
[1736311047329,0.12549,197.95,197.89,23.776884]
[1736311047941,0.12549,197.95,197.89,48.32737176]
[1736311048239,0.12549,197.99,197.91,23.776884]
[1736311048443,2.58,197.99,197.93,48.32737176]
[1736311048653,0.12549,197.98,197.94,24.55048776]
[1736311049021,0.12549,197.98,197.95,23.776884]
[1736311049247,2.58,198.01,197.95,49.08490462]
[1736311049436,2.58,198.01,197.95,48.32737176]
[1736311050035,0.12549,198.0,197.95,48.32737176]
[1736311050931,0.12549,198.0,197.95,23.776884]
[1736311051247,0.12549,198.0,197.93,160.95048776]
[1736311051449,0.12549,198.0,197.94,25.30810588]
[1736311051653,0.12549,198.0,197.93,136.4]
[1736311052445,0.12549,198.0,197.89,24.55048776]
[1736311052446,1.02434024,198.0,197.89,24.55048776]
[1736311052638,1.02434024,198.0,197.88,24.55048776]
[1736311052828,0.12549,197.98,197.89,23.776884]
[1736311053029,21.02434024,197.98,197.88,25.30824754]
[1736311053229,21.02434024,197.98,197.87,24.55048776]
[1736311053566,0.12549,197.98,197.89,24.55048776]
[1736311054348,20.0,198.01,197.92,48.32737176]
[1736311054532,2.58,198.0,197.93,23.776884]
[1736311055043,0.12549,197.99,197.93,23.776884]
[1736311056053,0.12549,197.99,197.94,25.30807882]
[1736311056254,0.12549,197.99,197.94,23.776884]
[1736311058337,0.12549,197.99,197.96,23.776884]
[1736311058849,0.12549,198.03,197.96,23.776884]
[1736311059053,2.58,198.02,197.96,23.776884]
[1736311059354,2.58,198.02,197.98,23.776884]
[1736311059540,6.6607,198.04,197.98,23.776884]
[1736311059541,6.6144,198.09,197.99,24.55048776]
[1736311059740,0.12549,198.04,197.99,24.55048776]
[1736311060055,0.12549,198.04,197.98,23.776884]
[1736311060858,0.12549,198.04,197.98,24.53428854]
[1736311061153,0.12549,198.04,197.98,49.0847763]
[1736311061656,0.12549,198.04,198.0,23.776884]
[1736311061855,0.12549,198.04,198.0,24.53415669]
[1736311062258,0.12549,198.04,197.99,136.4]
[1736311062454,0.12549,198.04,197.98,23.776884]
[1736311062635,0.12549,198.04,197.98,24.53425761]
[1736311062836,0.12549,198.04,197.98,49.08474537]
[1736311063063,0.12549,198.04,197.98,24.53425761]
[1736311063599,0.12549,198.04,197.98,49.08474537]
[1736311064978,0.12549,198.08,197.98,185.48474537]
[1736311065185,0.12549,198.06,197.98,184.72737176]
[1736311065485,0.12549,198.06,198.0,23.776884]
[1736311066494,0.12549,198.06,197.98,160.95048776]
[1736311066655,0.12549,198.06,197.98,136.4]
[1736311066854,0.12549,198.06,197.99,24.53427087]
[1736311068387,0.12549,198.06,197.99,23.776884]
[1736311068680,0.12549,198.04,197.92,24.55048776]
[1736311068889,0.12549,198.04,197.91,25.30809824]
[1736311069254,0.12549,198.04,197.92,23.776884]
[1736311069455,0.12549,198.04,197.92,39.11271913]
[1736311069986,0.12549,198.04,197.92,15.33583513]
[1736311070200,0.12549,198.04,197.93,16.09339618]
[1736311070370,20.0,198.06,197.96,15.33583513]
[1736311070690,20.0,198.06,197.97,0.75740053]
[1736311070985,0.12549,198.05,197.97,0.75740053]
[1736311071193,0.12549,198.03,197.97,0.75740053]
[1736311071690,0.12549,198.03,197.97,23.776884]
[1736311073095,0.12549,198.03,197.96,0.75743135]
[1736311073270,0.12549,198.03,197.94,136.4]
[1736311073602,3.47885024,198.04,197.94,136.4]
[1736311073603,1.66019,198.01,197.94,136.4]
[1736311074613,21.66019,198.01,197.9,160.93635046]
[1736311074880,0.12549,197.95,197.87,24.53635046]
[1736311075104,2.58,197.94,197.87,24.53635046]
[1736311075267,0.12549,197.93,197.83,136.4]
[1736311075464,1.02434024,197.93,197.83,136.4]
[1736311075869,0.12549,197.93,197.84,23.776884]
[1736311076285,0.12549,197.93,197.86,23.776884]
[1736311076873,0.12549,197.93,197.86,48.31323446]
[1736311077184,0.12549,197.93,197.86,23.776884]
[1736311078488,0.12549,197.93,197.88,23.776884]
[1736311079185,0.12549,197.93,197.86,136.4]
[1736311079966,0.12549,197.91,197.86,136.4]
[1736311082088,0.12549,197.91,197.87,49.07109775]
[1736311082267,0.12549,197.91,197.86,136.4]
[1736311083662,0.12549,197.91,197.87,23.776884]
[1736311083868,0.12549,197.91,197.87,24.53472262]
[1736311084872,0.12549,197.92,197.87,23.776884]
[1736311086367,0.12549,197.92,197.88,0.75783247]
[1736311086701,0.12549,197.92,197.87,23.776884]
[1736311087074,0.12549,197.92,197.87,24.53469211]
[1736311087575,0.12549,197.92,197.87,23.776884]
[1736311088518,0.12549,197.92,197.84,24.53635046]
[1736311089002,0.12549,197.92,197.85,24.53478106]
[1736311090101,20.0,197.96,197.85,49.07113152]
[1736311090315,2.58,197.95,197.9,23.776884]
[1736311090616,1.5347,198.01,197.92,23.776884]
[1736311090791,0.12549,197.95,197.92,23.776884]
[1736311090993,0.12549,197.95,197.94,23.776884]
[1736311091474,1.5347,198.01,197.94,23.776884]
[1736311091670,1.5347,198.01,197.93,161.69392763]
[1736311091671,2.58,198.0,197.96,23.776884]
[1736311092082,0.12549,197.99,197.96,23.776884]
[1736311093284,1.5347,198.01,197.96,23.776884]
[1736311093491,2.58,198.01,197.98,23.776884]
[1736311093673,1.618,198.06,197.98,39.10953708]
[1736311093878,2.58,198.05,198.0,23.776884]
[1736311094077,2.58,198.05,198.0,160.176884]
[1736311094325,0.12549,198.04,198.0,160.176884]
[1736311095007,0.12549,198.04,198.02,23.776884]
[1736311095513,5.0,198.16,198.02,23.776884]
[1736311095514,2.58,198.07,198.04,23.776884]
[1736311095717,4.1214,198.12,198.06,23.776884]
[1736311096027,4.1214,198.12,198.04,160.176884]
[1736311096028,4.1214,198.12,198.04,136.4]
[1736311096186,0.12549,198.11,198.04,136.4]
[1736311096387,0.12549,198.11,197.97,8.0379]
[1736311096388,0.12549,198.08,197.99,151.73265308]
[1736311096697,0.12549,198.08,198.01,23.776884]
[1736311097525,20.0,198.11,198.03,23.776884]
[1736311097825,0.12549,198.08,198.03,23.776884]
[1736311098720,20.12549,198.11,198.03,23.776884]
[1736311098904,20.12549,198.11,198.03,24.53407333]
[1736311099098,2.58,198.1,198.03,24.53407333]
[1736311099388,0.12549,198.09,198.03,24.53407333]
[1736311099797,2.58,198.1,198.05,23.776884]
[1736311100019,0.12549,198.09,198.05,23.776884]
[1736311100216,0.12549,198.09,198.04,23.776884]
[1736311100525,2.68549,198.09,198.04,23.776884]
[1736311100888,2.68549,198.09,197.99,24.51830213]
[1736311101119,2.68549,198.09,197.99,25.2756377]
[1736311101485,2.68549,198.09,198.03,23.776884]
[1736311101690,2.68549,198.09,198.03,24.53406511]
[1736311104014,2.68549,198.09,198.03,49.05236724]
[1736311104210,2.68549,198.09,198.03,24.53406511]
[1736311104596,2.68549,198.09,198.03,49.05236724]
[1736311105130,2.68549,198.09,198.03,160.93406511]
[1736311105413,2.68549,198.09,198.03,160.176884]
[1736311107639,22.68549,198.09,197.99,24.51830213]
[1736311107791,22.68549,198.09,197.99,25.27562205]
[1736311107996,22.68549,198.09,197.98,161.67562314]
[1736311108197,22.68549,198.09,197.98,160.91830213]
[1736311108642,2.68549,198.09,197.99,23.776884]
[1736311109293,2.68549,198.09,197.99,24.53423165]
[1736311109495,2.68549,198.09,198.01,23.776884]
[1736311109696,2.68549,198.09,198.02,0.75722421]
[1736311109899,3.58434024,198.09,198.01,136.4]
[1736311110104,0.12549,198.09,198.02,23.776884]
[1736311110306,2.56,198.09,198.04,23.776884]
[1736311110504,0.12549,198.08,198.04,0.75713495]
[1736311110743,0.12549,198.08,198.03,0.75717769]
[1736311111046,0.12549,198.08,198.02,0.75717769]
[1736311111249,0.12549,198.08,198.02,49.05236382]
[1736311112315,1.5414,198.12,198.03,48.29518613]
[1736311112536,2.56,198.11,198.04,0.75713814]
[1736311112734,1.5414,198.12,198.05,23.776884]
[1736311112950,2.56,198.11,198.05,48.29518613]
[1736311113247,0.12549,198.1,198.05,23.776884]
[1736311113848,0.12549,198.1,198.06,137.15707941]
[1736311114057,0.12549,198.1,198.07,0.75703737]
[1736311114411,0.12549,198.11,198.07,137.15703737]
[1736311114631,0.12549,198.11,198.07,136.4]
[1736311115029,0.12549,198.16,198.07,136.4]
[1736311115349,0.12549,198.14,198.07,136.4]
[1736311116411,2.56,198.13,198.08,24.53390977]
[1736311116749,0.12549,198.12,198.08,23.776884]
[1736311119968,2.68549,198.16,198.09,15.31333705]
[1736311120128,2.68549,198.16,198.1,0.756913]
[1736311120340,2.68549,198.16,198.09,136.4]
[1736311120840,0.12549,198.14,198.09,136.4]
[1736311122862,0.12549,198.14,198.04,151.71333705]
[1736311123063,0.12549,198.14,198.04,136.4]
[1736311125392,0.12549,198.14,198.05,0.75712012]
[1736311126055,0.12549,198.14,198.05,137.15712012]
[1736311126262,0.12549,198.14,198.05,136.4]
[1736311127462,21.02434024,198.14,198.05,136.4]
[1736311127663,21.02434024,198.14,198.0,151.71333705]
[1736311127975,26.02434024,198.14,198.0,136.4]
[1736311128281,0.12549,198.09,197.97,136.4]
[1736311128484,0.12549,198.05,197.96,136.4]
[1736311128654,0.12549,198.03,197.94,136.4]
[1736311128854,6.53159,198.03,197.94,136.4]
[1736311129082,6.53159,198.03,197.95,23.776884]
[1736311129470,6.53159,198.03,197.94,136.4]
[1736311130456,10.7048,198.08,197.95,39.84772023]
[1736311130655,8.1448,198.08,197.97,23.776884]
[1736311130852,2.68549,198.07,197.97,24.53425916]
[1736311131077,2.68549,198.07,197.97,39.84759621]
[1736311131474,2.56,198.06,198.0,23.776884]
[1736311131678,0.12549,198.05,198.0,24.53415374]
[1736311133208,0.12549,198.05,198.0,39.84749079]
[1736311133505,2.56,198.09,198.02,15.31333705]
[1736311133680,0.12549,198.08,198.04,160.176884]
[1736311134089,0.12549,198.08,198.05,0.75715773]
[1736311135069,0.12549,198.08,198.04,160.176884]
[1736311135980,0.12549,198.08,198.04,136.4]
[1736311138079,0.12549,198.08,198.02,136.4]
[1736311141097,0.12549,198.08,197.98,23.776884]
[1736311141298,0.12549,198.06,197.98,23.776884]
[1736311141467,0.12549,198.06,197.98,39.84760853]
[1736311141674,0.12549,198.06,198.0,15.31333705]
[1736311142184,0.12549,198.06,198.0,23.776884]
[1736311142381,0.12549,198.06,198.0,24.53419098]
[1736311143100,0.12549,198.06,198.0,23.776884]
[1736311144174,0.12549,198.06,198.0,160.176884]
[1736311145372,1.6409,198.12,198.02,175.49022105]
[1736311145605,2.56,198.11,198.03,0.75720152]
[1736311145781,0.12549,198.1,198.04,23.776884]
[1736311146203,0.12549,198.1,198.04,160.176884]
[1736311146412,0.12549,198.1,198.05,0.75711249]
[1736311146705,1.6409,198.12,198.06,160.176884]
[1736311146917,4.2009,198.12,198.06,160.176884]
[1736311147215,0.12549,198.11,198.06,175.49022105]
[1736311147508,10.0,198.23,198.06,175.49022105]
[1736311147509,1.6239,198.16,198.08,23.776884]
[1736311148004,2.68549,198.15,198.08,23.776884]
[1736311148313,2.56,198.14,198.1,23.776884]
[1736311148705,0.12549,198.13,198.1,23.776884]
[1736311148991,0.12549,198.13,198.1,24.53383288]
[1736311149194,0.12549,198.13,198.1,39.84716993]
[1736311149497,2.68549,198.15,198.1,39.84716993]
[1736311151410,0.12549,198.15,198.1,39.84716993]
[1736311151722,2.68549,198.15,198.1,39.84716993]
[1736311152918,2.68549,198.15,198.1,24.53383288]
[1736311153079,2.68549,198.15,198.05,151.71333705]
[1736311153411,2.68549,198.15,198.06,39.84732456]
[1736311153791,2.68549,198.15,198.09,151.71333705]
[1736311153975,0.12549,198.15,198.1,39.8471547]
[1736311154396,0.12549,198.15,198.11,23.776884]
[1736311156496,0.12549,198.15,198.1,39.8471547]
[1736311156804,0.12549,198.15,198.11,23.776884]
[1736311159024,0.12549,198.15,198.11,160.176884]
[1736311159324,0.12549,198.15,198.11,175.49022105]
[1736311159493,0.12549,198.15,198.11,160.176884]
[1736311160387,0.12549,198.15,198.13,23.776884]
[1736311160923,0.12549,198.15,198.12,23.776884]
[1736311163212,0.12549,198.15,198.11,136.4]
[1736311165101,0.12549,198.15,198.06,23.776884]
[1736311165316,0.12549,198.15,198.06,24.53395343]
[1736311167228,1.6239,198.16,198.06,24.53395343]
[1736311167229,2.56,198.14,198.08,23.776884]
[1736311167431,2.56,198.14,198.09,0.75698352]
[1736311168331,0.12549,198.13,198.1,23.776884]
[1736311172152,0.12549,198.13,198.09,0.75698352]
[1736311172340,0.12549,198.13,198.08,136.4]
[1736311177056,0.12549,198.13,198.05,23.776884]
[1736311177235,0.12549,198.13,198.07,23.776884]
[1736311178238,0.12549,198.11,198.03,136.4]
[1736311178926,0.12549,198.11,197.99,146.19708398]
[1736311179162,0.12549,198.11,198.0,24.53419563]
[1736311182760,0.12549,198.06,197.97,136.4]
[1736311182948,0.12549,198.04,197.96,136.4]
[1736311183134,0.12549,198.04,197.97,23.776884]
[1736311183331,1.02434024,198.04,197.94,136.4]
[1736311183530,20.12549,198.02,197.91,144.30749166]
[1736311183857,21.02434024,198.02,197.92,23.776884]
[1736311184171,0.12549,197.97,197.88,136.4]
[1736311184347,0.12549,197.95,197.88,136.4]
[1736311184739,0.12549,197.95,197.89,23.776884]
[1736311185637,0.12549,197.95,197.89,24.53468192]
[1736311188375,0.12549,197.95,197.89,39.87910622]
[1736311188738,0.12549,197.95,197.89,24.53468192]
[1736311188942,0.12549,197.95,197.91,175.5213083]
[1736311189161,2.56,198.01,197.95,23.776884]
[1736311189475,2.56,198.01,197.97,23.776884]
[1736311189476,0.12549,198.0,197.97,23.776884]
[1736311190954,0.12549,198.0,197.95,136.4]
[1736311191446,0.12549,198.0,197.96,23.776884]
[1736311191941,0.12549,198.0,197.96,24.5343507]
[1736311192779,0.12549,198.0,197.96,23.776884]
[1736311192982,0.12549,197.99,197.96,23.776884]
[1736311193685,0.12549,197.99,197.95,136.4]
[1736311195086,0.12549,197.99,197.91,151.7444243]
[1736311195291,0.12549,197.99,197.91,136.4]
[1736311195456,0.12549,197.99,197.92,24.53452566]
[1736311196193,0.12549,197.99,197.92,39.87894996]
[1736311196372,0.12549,197.99,197.94,23.776884]
[1736311196552,0.12549,197.99,197.96,23.776884]
[1736311197948,0.12549,197.99,197.94,136.4]
[1736311198367,0.12549,197.99,197.95,23.776884]
[1736311199966,0.12549,197.99,197.94,136.4]
[1736311200858,0.12549,197.99,197.9,136.4]
[1736311201177,0.12549,197.98,197.9,136.4]
[1736311201387,6.0402,197.97,197.9,136.4]
[1736311201847,0.12549,197.96,197.91,23.776884]
[1736311202049,2.68549,197.96,197.93,23.776884]
[1736311203364,26.0402,198.02,197.95,160.176884]
[1736311203549,2.56,198.01,197.95,160.176884]
[1736311203754,0.12549,198.0,197.95,160.176884]
[1736311204853,0.12549,198.0,197.97,23.776884]
[1736311205060,5.0,198.12,197.97,23.776884]
[1736311205061,7.8374,198.07,197.99,23.776884]
[1736311205255,1.5177,198.07,198.01,23.776884]
[1736311205454,2.56,198.08,198.03,23.776884]
[1736311205983,0.12549,198.07,198.03,23.776884]
[1736311206365,6.3197,198.12,198.03,23.776884]
[1736311206674,0.12549,198.1,198.03,23.776884]
[1736311206882,0.12549,198.1,198.04,0.75717226]
[1736311207175,0.12549,198.1,198.03,23.776884]
[1736311207381,0.12549,198.1,197.99,136.4]
[1736311207382,0.12549,198.08,197.99,136.4]
[1736311207684,1.02434024,198.08,197.94,15.32310357]
[1736311207981,1.02434024,198.08,197.96,23.776884]
[1736311208284,1.02434024,198.08,197.98,23.776884]
[1736311208490,0.12549,198.08,197.99,0.75735722]
[1736311208712,0.12549,198.08,198.0,23.776884]
[1736311208857,2.56,198.07,198.02,23.776884]
[1736311209267,0.12549,198.06,198.02,23.776884]
[1736311210057,0.12549,198.06,198.02,24.53412044]
[1736311210492,0.12549,198.06,198.02,39.85722401]
[1736311211357,6.6627,198.18,198.04,15.32310357]
[1736311211695,6.6627,198.18,197.99,5.0]
[1736311211696,0.12549,198.11,198.06,160.176884]
[1736311212388,0.12549,198.11,198.03,136.4]
[1736311212765,0.12549,198.11,198.04,23.776884]
[1736311213187,0.12549,198.11,198.04,24.53407716]
[1736311214796,0.12549,198.11,198.03,136.4]
[1736311215496,0.12549,198.11,198.01,23.776884]
[1736311215674,0.12549,198.11,198.03,23.776884]
[1736311216397,0.12549,198.11,198.05,23.776884]
[1736311216607,0.12549,198.11,198.06,0.75710251]
[1736311217482,0.12549,198.11,198.07,23.776884]
[1736311217693,2.56,198.11,198.07,23.776884]
[1736311217899,2.68549,198.12,198.07,23.776884]
[1736311218395,0.12549,198.12,198.07,23.776884]
[1736311218800,0.12549,198.12,198.08,23.776884]
[1736311220089,0.12549,198.12,198.08,24.53392655]
[1736311220392,2.56,198.15,198.08,160.93392655]
[1736311220696,0.12549,198.14,198.06,136.4]
[1736311220860,0.12549,198.14,198.07,0.75701881]
[1736311221064,0.12549,198.14,198.08,23.776884]
[1736311222195,0.12549,198.14,198.09,0.75698546]
[1736311223898,0.12549,198.14,198.07,24.53386779]
[1736311224968,0.12549,198.14,198.07,160.93386779]
[1736311225278,0.12549,198.14,198.07,160.176884]
[1736311226328,0.12549,198.14,198.08,0.75700017]
[1736311226601,2.56,198.14,198.09,23.776884]
[1736311226773,0.12549,198.13,198.09,23.776884]
[1736311228603,0.12549,198.13,198.09,24.53384774]
[1736311228795,2.56,198.15,198.09,160.93384774]
[1736311228994,2.56,198.15,198.09,160.176884]
[1736311229200,0.12549,198.14,198.11,23.776884]
[1736311230418,21.5472,198.2,198.13,23.776884]
[1736311230712,2.56,198.16,198.13,23.776884]
[1736311231217,0.12549,198.15,198.11,136.39999883]
[1736311231414,0.12549,198.15,198.03,136.39999883]
[1736311231597,0.12549,198.15,198.04,10.55551499]
[1736311231800,0.12549,198.15,198.05,9.79841857]
[1736311231995,0.12549,198.15,198.06,137.15704314]
[1736311232199,0.12549,198.15,198.06,136.39999883]
[1736311233095,0.12549,198.15,198.07,23.776884]
[1736311233316,0.12549,198.15,198.07,24.53395508]
[1736311234287,0.12549,198.13,198.07,24.53395508]
[1736311235799,0.12549,198.13,198.07,23.776884]
[1736311237396,0.12549,198.13,198.06,136.39999883]
[1736311239925,0.12549,198.13,198.04,23.776884]
[1736311240115,0.12549,198.13,198.04,24.5340293]
[1736311240624,0.12549,198.13,198.04,23.776884]
[1736311240925,0.12549,198.13,198.04,24.53403942]
[1736311242628,0.12549,198.13,198.04,34.33245799]
[1736311243323,0.12549,198.11,198.04,34.33245799]
[1736311243499,0.12549,198.11,198.06,9.79841857]
[1736311243699,0.12549,198.11,198.08,23.776884]
[1736311245147,2.56,198.15,198.1,23.776884]
[1736311245311,0.12549,198.14,198.1,23.776884]
[1736311246320,0.89885024,198.19,198.1,23.776884]
[1736311246523,2.56,198.18,198.1,23.776884]
[1736311246728,2.56,198.18,198.1,24.53379379]
[1736311247142,0.12549,198.17,198.1,24.53379379]
[1736311247659,0.12549,198.17,198.1,23.776884]
[1736311248118,0.12549,198.17,198.1,24.53385071]
[1736311249522,0.12549,198.17,198.1,23.776884]
[1736311250463,0.12549,198.17,198.1,0.75696692]
[1736311250825,0.12549,198.17,198.1,24.53385092]
[1736311251228,0.12549,198.17,198.11,23.776884]
[1736311251547,1.5472,198.2,198.13,33.57530257]
[1736311251721,0.12549,198.19,198.15,23.776884]
[1736311251922,0.12549,198.19,198.16,0.75670632]
[1736311253037,0.12549,198.19,198.13,136.39999883]
[1736311254255,0.12549,198.19,198.1,136.39999883]
[1736311254435,0.12549,198.17,198.04,152.13789049]
[1736311254618,0.12549,198.17,198.05,137.15704566]
[1736311254824,0.12549,198.17,198.06,23.776884]
[1736311255060,0.12549,198.17,198.06,160.93392755]
[1736311255260,0.12549,198.15,198.04,136.39999883]
[1736311255444,1.5746,198.11,198.02,7.90749166]
[1736311255647,1.5746,198.11,198.01,0.75722784]
[1736311255837,1.02434024,198.1,198.0,7.90749166]
[1736311256558,1.02434024,198.1,197.98,15.64788988]
[1736311256559,0.12549,198.05,197.96,144.30749049]
[1736311256730,0.12549,198.03,197.97,23.776884]
[1736311257127,0.12549,198.03,197.99,23.776884]
[1736311257534,0.12549,198.03,197.97,23.776884]
[1736311257752,0.12549,198.03,197.97,24.53431308]
[1736311258961,0.12549,198.03,197.97,34.33273165]
[1736311259126,0.12549,198.03,197.99,23.776884]
[1736311259461,0.12549,198.03,198.01,23.776884]
[1736311260737,0.12549,198.03,198.0,136.39999883]
[1736311260938,0.12549,198.03,198.01,23.776884]
[1736311261936,0.12549,198.08,198.01,160.17688283]
[1736311262834,0.12549,198.08,198.03,23.776884]
[1736311263372,0.12549,198.09,198.05,160.17688283]